bitfinex-derivatives/quotes_BTCF0:USTF0_20250709
["timestamp","ask_amount","ask_price","bid_price","bid_amount"]
[1752102310269,1.67172164,111370.0,111360.0,0.02979863]
[1752102311872,1.67172164,111370.0,111360.0,0.01576363]
[1752102312067,1.67172164,111370.0,111350.0,0.00179606]
[1752102312068,0.1795348,111360.0,111350.0,0.00179606]
[1752102312266,0.94870793,111360.0,111350.0,0.00179606]
[1752102312472,1.05640212,111360.0,111350.0,0.00179606]
[1752102314186,1.05640212,111360.0,111350.0,0.00279606]
[1752102314476,1.05619081,111360.0,111350.0,0.00279606]
[1752102314681,1.05619081,111360.0,111350.0,0.00179606]
[1752102314867,1.05719081,111360.0,111350.0,0.00179606]
[1752102315065,0.94970793,111360.0,111350.0,0.00179606]
[1752102315277,0.179567,111340.0,111330.0,0.05727109]
[1752102315470,0.179567,111340.0,111330.0,0.01717109]
[1752102315471,0.98542275,111340.0,111330.0,0.01717109]
[1752102315674,0.98860165,111340.0,111330.0,0.03218109]
[1752102315986,0.12428575,111340.0,111330.0,1.03665199]
[1752102316172,0.12428575,111340.0,111330.0,1.16110199]
[1752102316173,0.08061152,111340.0,111330.0,1.16110199]
[1752102316370,0.68531423,111340.0,111330.0,1.17262947]
[1752102316685,0.76592575,111340.0,111330.0,1.16210199]
[1752102316872,0.12428575,111340.0,111330.0,1.16210199]
[1752102317068,0.72221152,111340.0,111330.0,1.16210199]
[1752102317282,0.04367423,111340.0,111330.0,1.17462903]
[1752102317469,0.3243705,111350.0,111340.0,0.179567]
[1752102317667,0.9659305,111350.0,111340.0,0.8816259]
[1752102317872,0.9658905,111350.0,111340.0,0.9043659]
[1752102318076,0.9658905,111350.0,111340.0,0.91489193]
[1752102318282,0.9658905,111350.0,111340.0,0.67534303]
[1752102318579,0.88523898,111350.0,111340.0,0.91489193]
[1752102318982,0.88523898,111350.0,111340.0,0.91689193]
[1752102319685,0.88523898,111350.0,111340.0,0.91889193]
[1752102320888,0.70568528,111350.0,111340.0,0.91689193]
[1752102321089,0.70552528,111350.0,111340.0,0.91989193]
[1752102321388,0.70552528,111350.0,111340.0,0.91989208]
[1752102322785,0.06420528,111350.0,111340.0,0.91989208]
[1752102322987,0.70544528,111350.0,111340.0,0.91989208]
[1752102323183,0.06420528,111350.0,111340.0,1.09951608]
[1752102324080,0.06420528,111350.0,111340.0,1.12716619]
[1752102325187,0.06420528,111350.0,111340.0,2.40940619]
[1752102326086,0.06420528,111350.0,111340.0,0.94754219]
[1752102330091,0.06420528,111350.0,111340.0,0.94755197]
[1752102332987,0.06420528,111350.0,111340.0,0.94755167]
[1752102333289,0.08061152,111360.0,111350.0,0.1795509]
[1752102333589,0.09959216,111370.0,111360.0,0.1795348]
[1752102333790,0.09959216,111370.0,111360.0,1.13329249]
[1752102334190,0.01898064,111370.0,111360.0,1.14381722]
[1752102335292,0.01998064,111370.0,111360.0,1.14381722]
[1752102336292,0.02098064,111370.0,111360.0,1.14381722]
[1752102337289,0.02098064,111370.0,111360.0,1.16655722]
[1752102337886,0.01898064,111370.0,111360.0,1.18644352]
[1752102338086,0.01898064,111370.0,111360.0,1.18844352]
[1752102338582,0.01898064,111370.0,111360.0,1.18819781]
[1752102342694,0.01898064,111370.0,111360.0,1.17767369]
[1752102342894,0.08983034,111380.0,111370.0,0.1795188]
[1752102342895,0.08061152,111380.0,111370.0,0.1795188]
[1752102343091,1.07280882,111390.0,111380.0,0.1795027]
[1752102343397,1.07280882,111390.0,111380.0,0.48684092]
[1752102343398,1.08828882,111390.0,111380.0,0.48684092]
[1752102344087,1.0076773,111390.0,111380.0,0.48684092]
[1752102344789,1.0076773,111390.0,111380.0,0.84764091]
[1752102344998,1.0086773,111390.0,111380.0,0.84764091]
[1752102345296,1.05146262,111390.0,111380.0,0.83166091]
[1752102345491,1.05146262,111390.0,111380.0,0.84764091]
[1752102345796,1.05126262,111390.0,111380.0,0.83166091]
[1752102345991,1.06109787,111390.0,111380.0,0.48684091]
[1752102346791,1.01622467,111390.0,111380.0,0.48684091]
[1752102350598,1.01622467,111390.0,111380.0,0.48680025]
[1752102351504,1.09683619,111390.0,111380.0,0.48680025]
[1752102352806,1.09683619,111390.0,111380.0,0.24725135]
[1752102353003,1.09683619,111390.0,111380.0,0.48680025]
[1752102353505,1.01622467,111390.0,111380.0,0.48680025]
[1752102356003,1.01622467,111390.0,111380.0,0.84760025]
[1752102356204,1.01622467,111390.0,111380.0,0.48680025]
[1752102359407,1.01622467,111390.0,111380.0,0.47276851]
[1752102359605,1.01622467,111390.0,111380.0,0.48679959]
[1752102359803,1.09683619,111390.0,111380.0,0.48679959]
[1752102361007,1.09683619,111390.0,111380.0,0.24725069]
[1752102361207,1.09683619,111390.0,111380.0,0.48679959]
[1752102361396,1.09683619,111390.0,111380.0,0.47351268]
[1752102361605,1.09683619,111390.0,111380.0,0.48682807]
[1752102364112,1.09683619,111390.0,111380.0,0.46237807]
[1752102365121,1.09683619,111390.0,111380.0,0.22282917]
[1752102365313,1.09683619,111390.0,111380.0,0.46237807]
[1752102366717,1.08135619,111390.0,111380.0,0.48682807]
[1752102367708,1.08135619,111390.0,111380.0,0.44639807]
[1752102367907,1.08135619,111390.0,111380.0,0.46245807]
[1752102368618,1.08135619,111390.0,111380.0,0.46247498]
[1752102369711,1.08061288,111390.0,111380.0,0.46247498]
[1752102370219,1.00000136,111390.0,111380.0,0.45693853]
[1752102370410,1.00000136,111390.0,111380.0,0.47299853]
[1752102372215,1.08061288,111390.0,111380.0,0.47299853]
[1752102373615,1.08061288,111390.0,111380.0,0.83379853]
[1752102373821,1.08061288,111390.0,111380.0,0.89813853]
[1752102375313,0.17468878,111390.0,111380.0,0.89813853]
[1752102375618,0.12465353,111390.0,111380.0,2.44320388]
[1752102375822,0.12465353,111390.0,111380.0,2.44039506]
[1752102376016,0.04404201,111390.0,111380.0,2.44039506]
[1752102376421,0.04404201,111390.0,111380.0,2.20084445]
[1752102377119,0.04404201,111390.0,111380.0,2.44039335]
[1752102377427,0.08261152,111400.0,111390.0,0.1794868]
[1752102377619,0.08261152,111400.0,111390.0,1.16783745]
[1752102377818,0.002,111400.0,111390.0,1.16783745]
[1752102378524,0.002,111400.0,111390.0,1.17705615]
[1752102379125,0.006,111400.0,111390.0,1.19059639]
[1752102379325,0.006,111400.0,111390.0,1.19058848]
[1752102379524,0.004,111400.0,111390.0,1.19058848]
[1752102379725,0.005,111400.0,111390.0,1.19058848]
[1752102380028,0.003,111400.0,111390.0,1.19058848]
[1752102381118,0.003,111400.0,111390.0,1.27058848]
[1752102382325,1e-07,111400.0,111390.0,1.27058568]
[1752102383128,1e-07,111400.0,111390.0,1.26006513]
[1752102383324,1e-07,111400.0,111390.0,1.27058591]
[1752102384529,1e-07,111400.0,111390.0,1.19058591]
[1752102384728,1e-07,111400.0,111390.0,1.26058591]
[1752102388639,0.02057877,111410.0,111400.0,0.1794707]
[1752102388840,0.02057877,111410.0,111400.0,0.92705266]
[1752102389041,0.03579877,111410.0,111400.0,0.95059266]
[1752102389537,0.07624225,111410.0,111400.0,0.95059266]
[1752102389741,0.07624225,111410.0,111400.0,0.95158295]
[1752102390638,0.06102225,111410.0,111400.0,2.22410295]
[1752102391241,0.06102225,111410.0,111400.0,2.22610315]
[1752102391944,0.73512882,111430.0,111420.0,0.1794385]
[1752102392239,0.79050882,111430.0,111420.0,1.0589363]
[1752102392436,0.83120882,111430.0,111420.0,1.0589363]
[1752102392841,0.7505973,111430.0,111420.0,0.8193874]
[1752102393142,0.7525973,111430.0,111420.0,0.8193874]
[1752102393343,0.7525973,111430.0,111420.0,0.83341379]
[1752102394246,0.7535973,111430.0,111420.0,0.83341379]
[1752102394839,0.7625553,111430.0,111420.0,0.83341379]
[1752102396345,0.7625553,111430.0,111420.0,1.07296269]
[1752102397344,0.7625553,111430.0,111420.0,1.08636623]
[1752102397844,0.7625553,111430.0,111420.0,0.84681733]
[1752102398241,0.7625553,111430.0,111420.0,1.08636623]
[1752102401640,0.7625553,111430.0,111420.0,0.84646733]
[1752102402048,0.84316682,111430.0,111420.0,0.80987379]
[1752102402247,0.84316682,111430.0,111420.0,0.82327676]
[1752102403043,0.7625553,111430.0,111420.0,0.82327676]
[1752102403350,0.84316682,111430.0,111420.0,0.84646676]
[1752102403740,0.7625553,111430.0,111420.0,0.84646676]
[1752102404050,0.8026755,111430.0,111420.0,0.84646676]
[1752102404349,0.88128702,111430.0,111420.0,0.84646676]
[1752102404744,0.16093172,111430.0,111420.0,2.37374165]
[1752102404949,0.0803202,111430.0,111420.0,2.45674165]
[1752102405745,0.0803202,111430.0,111420.0,2.81754165]
[1752102405946,0.0803202,111430.0,111420.0,2.82054165]
[1752102406346,0.0803202,111430.0,111420.0,2.80651526]
[1752102407048,0.0803202,111430.0,111420.0,2.82053977]
[1752102408949,0.0803202,111430.0,111420.0,2.83105826]
[1752102409450,0.002,111440.0,111430.0,0.1794224]
[1752102409650,0.002,111440.0,111430.0,0.92859477]
[1752102409850,0.06207,111440.0,111430.0,0.88719477]
[1752102410050,0.10227,111440.0,111430.0,0.88719477]
[1752102412155,0.10227,111440.0,111430.0,0.89771271]
[1752102412556,0.11146209,111440.0,111430.0,0.89771271]
[1752102413349,0.11146209,111440.0,111430.0,0.85641271]
[1752102413549,0.11146209,111440.0,111430.0,0.83322271]
[1752102413856,0.11146209,111440.0,111430.0,0.85641271]
[1752102415158,0.11146209,111440.0,111430.0,0.85641232]
[1752102415357,0.11146209,111440.0,111430.0,0.84589438]
[1752102418753,0.11146209,111440.0,111430.0,0.60634548]
[1752102418959,0.11146209,111440.0,111430.0,0.82270438]
[1752102419356,0.11146209,111440.0,111430.0,0.84589438]
[1752102419848,0.11146209,111440.0,111430.0,0.82270438]
[1752102420360,0.11146209,111440.0,111430.0,0.84589438]
[1752102420859,0.11146209,111440.0,111430.0,0.88819438]
[1752102421559,0.14982679,111440.0,111430.0,0.88819438]
[1752102422854,0.13375679,111440.0,111430.0,0.88819438]
[1752102423060,0.09355679,111440.0,111430.0,0.88819438]
[1752102423260,0.10962679,111440.0,111430.0,0.88819438]
[1752102423458,0.09355679,111440.0,111430.0,0.88819438]
[1752102423658,0.10962679,111440.0,111430.0,0.88819438]
[1752102423859,0.0403647,111440.0,111430.0,0.88819438]
[1752102424060,0.0403647,111440.0,111430.0,0.92969438]
[1752102425462,0.04957778,111440.0,111430.0,0.93169438]
[1752102425666,0.06564778,111440.0,111430.0,0.93269438]
[1752102425872,0.1301893,111440.0,111430.0,0.93269438]
[1752102426056,0.04957778,111440.0,111430.0,0.93269438]
[1752102426258,0.06564778,111440.0,111430.0,0.93269438]
[1752102426459,0.10804778,111440.0,111430.0,0.93269438]
[1752102428760,0.09197778,111440.0,111430.0,0.93269438]
[1752102428960,0.09197778,111440.0,111430.0,0.93264488]
[1752102429160,0.74214778,111440.0,111430.0,0.93264488]
[1752102429368,0.74210778,111440.0,111430.0,0.93264488]
[1752102429567,0.72565778,111440.0,111430.0,0.93264488]
[1752102429767,0.74210778,111440.0,111430.0,0.93264488]
[1752102430866,0.74210778,111440.0,111430.0,1.1714478]
[1752102431068,0.74210778,111440.0,111430.0,0.69309598]
[1752102431268,0.74210778,111440.0,111430.0,1.1714478]
[1752102431468,0.74210778,111440.0,111430.0,1.15825834]
[1752102434268,0.74210778,111440.0,111430.0,1.15825833]
[1752102434474,0.74210778,111440.0,111430.0,1.17146777]
[1752102435173,0.10842778,111440.0,111430.0,1.18198596]
[1752102435373,0.74186778,111440.0,111430.0,1.18198596]
[1752102436375,0.8224793,111440.0,111430.0,1.17146777]
[1752102437075,0.1890393,111440.0,111430.0,1.17148657]
[1752102437376,0.8059093,111440.0,111430.0,1.18200465]
[1752102437869,0.8059093,111440.0,111430.0,1.17148657]
[1752102438174,0.7634293,111440.0,111430.0,1.18200465]
[1752102438573,0.7634293,111440.0,111430.0,1.17148657]
[1752102439475,0.75405622,111440.0,111430.0,1.17148657]
[1752102440674,0.76292119,111440.0,111430.0,1.17148657]
[1752102441976,0.77937119,111440.0,111430.0,1.17148657]
[1752102442174,0.76292119,111440.0,111430.0,1.18200465]
[1752102443773,0.12984119,111440.0,111430.0,1.18200465]
[1752102444071,0.17245678,111450.0,111440.0,0.1794063]
[1752102444277,0.80529678,111450.0,111440.0,1.39340814]
[1752102444872,0.74299962,111450.0,111440.0,1.39340814]
[1752102445065,0.73380732,111450.0,111440.0,1.39340814]
[1752102445270,0.6531958,111450.0,111440.0,1.39340814]
[1752102445776,0.6531958,111450.0,111440.0,1.4039253]
[1752102446877,0.0203958,111450.0,111440.0,1.39340814]
[1752102447775,0.08061152,111460.0,111450.0,0.1793903]
[1752102447971,0.18257602,111470.0,111460.0,0.1793742]
[1752102448172,0.19902602,111470.0,111460.0,1.11680013]
[1752102448372,0.27237323,111470.0,111460.0,1.11680013]
[1752102448578,0.17531171,111470.0,111460.0,1.11680013]
[1752102448773,0.84664323,111470.0,111460.0,1.11680013]
[1752102448973,0.78248171,111470.0,111460.0,1.15660013]
[1752102449172,0.14996171,111470.0,111460.0,1.39577604]
[1752102449479,0.78248171,111470.0,111460.0,1.39577604]
[1752102449773,0.78248171,111470.0,111460.0,1.15660013]
[1752102449774,0.76603171,111470.0,111460.0,1.15660013]
[1752102449980,0.14996171,111470.0,111460.0,1.15660013]
[1752102450178,0.78248171,111470.0,111460.0,1.15660013]
[1752102450682,0.96183981,111470.0,111460.0,1.11680013]
[1752102450877,0.82358171,111470.0,111460.0,0.87750835]
[1752102451383,0.82558171,111470.0,111460.0,0.87750835]
[1752102451582,0.82558171,111470.0,111460.0,0.8775054]
[1752102451882,0.20185551,111470.0,111460.0,0.8775054]
[1752102452080,0.83421551,111470.0,111460.0,0.8775054]
[1752102453184,1.01557361,111470.0,111460.0,0.8167854]
[1752102453381,1.01557361,111470.0,111460.0,0.8334054]
[1752102453588,0.83621551,111470.0,111460.0,0.8334054]
[1752102454086,1.01557361,111470.0,111460.0,0.8334054]
[1752102454282,0.83621551,111470.0,111460.0,0.8334054]
[1752102455977,0.83621551,111470.0,111460.0,0.8756054]
[1752102456176,0.87459169,111470.0,111460.0,0.8756054]
[1752102457390,0.87459169,111470.0,111460.0,0.87560507]
[1752102459584,1.05394979,111470.0,111460.0,0.87560507]
[1752102459788,1.05394979,111470.0,111460.0,0.51480507]
[1752102460087,1.05393959,111470.0,111460.0,0.51480507]
[1752102464186,1.05393959,111470.0,111460.0,0.47247507]
[1752102465390,1.05393959,111470.0,111460.0,0.51507507]
[1752102468989,1.05393989,111470.0,111460.0,0.51507507]
[1752102470193,1.05393989,111470.0,111460.0,0.53230839]
[1752102472995,1.05393989,111470.0,111460.0,0.77135591]
[1752102473295,1.13455141,111470.0,111460.0,0.77135591]
[1752102474204,0.73115598,111470.0,111460.0,1.13215591]
[1752102474406,0.8117675,111470.0,111460.0,1.41420969]
[1752102474809,0.82078271,111470.0,111460.0,1.17515591]
[1752102475101,0.8116875,111470.0,111460.0,1.41420963]
[1752102475303,0.8116875,111470.0,111460.0,1.17515585]
[1752102477212,0.1394275,111470.0,111460.0,1.41420963]
[1752102477402,0.1229775,111470.0,111460.0,1.41420963]
[1752102478610,0.04236598,111470.0,111460.0,1.41420963]
[1752102479205,0.04236598,111470.0,111460.0,1.42472457]
[1752102480608,0.0914545,111480.0,111470.0,0.1793584]
[1752102480609,0.002,111480.0,111470.0,0.1793584]
[1752102480804,0.002,111480.0,111470.0,2.40428961]
[1752102481107,0.002,111480.0,111470.0,2.42869961]
[1752102481812,0.005,111480.0,111470.0,2.42869961]
[1752102482208,0.005,111480.0,111470.0,2.41818519]
[1752102482407,0.005,111480.0,111470.0,2.48989333]
[1752102482812,0.005,111480.0,111470.0,2.48970195]
[1752102483810,0.005,111480.0,111470.0,2.81970195]
[1752102484012,0.005,111480.0,111470.0,2.50021596]
[1752102484912,0.005,111480.0,111470.0,2.51732423]
[1752102485911,0.005,111480.0,111470.0,2.51732408]
[1752102486506,0.08630028,111490.0,111480.0,0.1793423]
[1752102486708,0.08630028,111490.0,111480.0,1.13216771]
[1752102487009,0.00568876,111490.0,111480.0,1.13216771]
[1752102487809,0.00668876,111490.0,111480.0,1.13216771]
[1752102488111,0.00668876,111490.0,111480.0,1.14133285]
[1752102488408,0.002,111490.0,111480.0,1.47857861]
[1752102488609,0.08561152,111500.0,111490.0,0.1793262]
[1752102488811,0.005,111500.0,111490.0,2.13920352]
[1752102489010,0.08061152,111510.0,111500.0,0.1793101]
[1752102489310,0.08061152,111510.0,111500.0,0.87898742]
[1752102489519,0.08061152,111510.0,111500.0,1.11794551]
[1752102489815,0.08061152,111510.0,111500.0,0.87898742]
[1752102490110,0.08061152,111510.0,111500.0,0.91868742]
[1752102490820,0.35480852,111520.0,111510.0,0.1792944]
[1752102491015,0.37024852,111520.0,111510.0,0.79307172]
[1752102491210,0.19096992,111520.0,111510.0,1.03202981]
[1752102491708,0.002,111530.0,111520.0,0.1792786]
[1752102491912,0.01744,111530.0,111520.0,0.65068265]
[1752102492211,0.05894,111530.0,111520.0,0.84814074]
[1752102492411,0.2789025,111530.0,111520.0,0.84814074]
[1752102492614,0.13677177,111530.0,111520.0,0.80814074]
[1752102492917,0.32003407,111530.0,111520.0,0.80814074]
[1752102493302,0.14077177,111530.0,111520.0,0.80814074]
[1752102493908,0.32003407,111530.0,111520.0,0.80814074]
[1752102494417,0.32103407,111530.0,111520.0,0.80814074]
[1752102494617,0.94975407,111530.0,111520.0,0.80814074]
[1752102494917,0.32003407,111530.0,111520.0,0.80814074]
[1752102495112,0.95674516,111530.0,111520.0,0.80814074]
[1752102495415,0.14776286,111530.0,111520.0,0.81873669]
[1752102495609,0.77744286,111530.0,111520.0,0.77903669]
[1752102495810,0.76845177,111530.0,111520.0,0.77903669]
[1752102496005,0.76845177,111530.0,111520.0,0.80364669]
[1752102496306,0.76845177,111530.0,111520.0,0.81873669]
[1752102496512,0.76845177,111530.0,111520.0,0.80364669]
[1752102496713,0.94771427,111530.0,111520.0,0.80364669]
[1752102496913,0.94771427,111530.0,111520.0,0.81873669]
[1752102497115,0.94767427,111530.0,111520.0,0.81873669]
[1752102497818,0.76841177,111530.0,111520.0,0.5797786]
[1752102498021,0.94755457,111530.0,111520.0,0.81873669]
[1752102498717,0.13877177,111530.0,111520.0,0.81873669]
[1752102498918,0.31803457,111530.0,111520.0,0.81873669]
[1752102499117,0.94743457,111530.0,111520.0,0.81873669]
[1752102499319,0.95652711,111530.0,111520.0,0.81873669]
[1752102499712,0.95652711,111530.0,111520.0,0.79412669]
[1752102500014,0.32712711,111530.0,111520.0,0.37589]
[1752102500206,0.32712711,111530.0,111510.0,0.91350469]
[1752102500207,0.1792788,111520.0,111510.0,0.91350469]
[1752102500411,0.31535057,111520.0,111510.0,1.02859469]
[1752102500619,0.94471057,111520.0,111510.0,1.26755278]
[1752102500819,0.94471057,111520.0,111510.0,1.29216278]
[1752102501017,0.31535057,111520.0,111510.0,0.36790163]
[1752102501322,1.74813066,111520.0,111510.0,0.1]
[1752102501509,0.70050057,111520.0,111510.0,0.23995809]
[1752102501712,1.30543057,111520.0,111510.0,0.65821108]
[1752102501913,0.31535057,111520.0,111510.0,0.67330108]
[1752102502113,0.94459057,111520.0,111510.0,0.43434299]
[1752102502314,1.30539057,111520.0,111510.0,0.43434299]
[1752102502717,1.32974057,111520.0,111510.0,0.25504809]
[1752102502913,1.32974057,111520.0,111510.0,0.23995809]
[1752102503113,0.70050057,111520.0,111510.0,0.23995809]
[1752102503318,0.70050057,111520.0,111510.0,0.001]
[1752102503319,1.32970057,111520.0,111510.0,0.001]
[1752102503522,0.70050057,111520.0,111510.0,0.001]
[1752102503722,1.32970057,111520.0,111510.0,0.001]
[1752102504115,0.87985257,111520.0,111510.0,0.001]
[1752102504621,1.32966057,111520.0,111510.0,0.23995809]
[1752102504822,1.33066057,111520.0,111510.0,0.23895809]
[1752102507725,0.1792949,111510.0,111500.0,0.50792349]
[1752102507924,0.69704407,111510.0,111500.0,0.52301349]
[1752102508118,0.69704407,111510.0,111500.0,0.50792349]
[1752102508320,0.69704407,111510.0,111500.0,0.20837697]
[1752102508517,0.72139407,111510.0,111500.0,0.25293446]
[1752102508723,0.72139407,111510.0,111500.0,0.41826909]
[1752102509026,0.72139407,111510.0,111500.0,0.43435909]
[1752102509228,0.72139407,111510.0,111500.0,0.41926909]
[1752102509418,0.69704407,111510.0,111500.0,0.195401]
[1752102509622,0.69704407,111510.0,111500.0,0.180311]
[1752102509824,0.69704407,111510.0,111500.0,0.41926909]
[1752102510026,0.69704407,111510.0,111500.0,0.43328585]
[1752102510223,0.69704407,111510.0,111500.0,0.41926909]
[1752102510826,0.69704407,111510.0,111500.0,0.43435909]
[1752102511029,0.69704407,111510.0,111500.0,0.41926909]
[1752102511525,0.69704407,111510.0,111500.0,0.43435909]
[1752102512331,0.69704407,111510.0,111500.0,0.25504809]
[1752102512531,0.69704407,111510.0,111500.0,0.43435909]
[1752102513529,0.69646286,111510.0,111500.0,0.43435909]
[1752102513733,0.69646286,111510.0,111500.0,0.25504809]
[1752102514032,1.32530286,111510.0,111500.0,0.25504809]
[1752102515023,1.57301095,111510.0,111500.0,0.01484369]
[1752102515225,1.57301095,111510.0,111500.0,0.001]
[1752102515438,0.179327,111490.0,111480.0,0.79634695]
[1752102515734,0.85999756,111490.0,111480.0,0.28514033]
[1752102515934,0.90029756,111490.0,111480.0,0.28514033]
[1752102516135,0.94299756,111490.0,111480.0,0.46448343]
[1752102516434,0.94299756,111490.0,111480.0,0.46848343]
[1752102516836,0.94299756,111490.0,111480.0,0.47248343]
[1752102517229,0.94299756,111490.0,111480.0,0.29014033]
[1752102517436,1.30379756,111490.0,111480.0,0.29014033]
[1752102517635,1.30379756,111490.0,111480.0,0.46948343]
[1752102518236,1.30379756,111490.0,111480.0,0.29014033]
[1752102518530,1.31237756,111490.0,111480.0,0.28768033]
[1752102518736,1.31237756,111490.0,111480.0,0.46702343]
[1752102520242,1.28835756,111490.0,111480.0,0.46702343]
[1752102520436,1.28835756,111490.0,111480.0,0.45317695]
[1752102521039,1.28835756,111490.0,111480.0,0.21421886]
[1752102521241,1.28835756,111490.0,111480.0,0.45317695]
[1752102521541,1.28835756,111490.0,111480.0,0.43593119]
[1752102521741,1.30702705,111490.0,111480.0,0.43593119]
[1752102522939,1.30702705,111490.0,111480.0,0.47643119]
[1752102523237,1.30702705,111490.0,111480.0,0.49028221]
[1752102523437,1.30702705,111490.0,111480.0,0.49028154]
[1752102528042,1.30702705,111490.0,111480.0,0.47643119]
[1752102528242,1.30702705,111490.0,111480.0,0.49037459]
[1752102528440,1.30767106,111490.0,111480.0,0.49037459]
[1752102529044,1.26497106,111490.0,111480.0,0.49037459]
[1752102529245,1.26497106,111490.0,111480.0,0.53337459]
[1752102530435,1.26497106,111490.0,111480.0,0.35403149]
[1752102530842,1.26497106,111490.0,111480.0,0.31103149]
[1752102531045,1.28835106,111490.0,111480.0,0.0149434]
[1752102531342,1.56840915,111490.0,111480.0,0.0149434]
[1752102531544,1.64882197,111490.0,111480.0,0.0149434]
[1752102531842,1.56840915,111490.0,111480.0,0.0149434]
[1752102532143,1.32945106,111490.0,111480.0,0.0149434]
[1752102532440,1.32945106,111490.0,111480.0,0.001]
[1752102532645,1.40986388,111490.0,111480.0,0.001]
[1752102535950,1.40986388,111490.0,111480.0,0.23995809]
[1752102536448,0.78182388,111490.0,111480.0,0.23995809]
[1752102536650,1.40177388,111490.0,111480.0,0.25658809]
[1752102536842,1.40177388,111490.0,111480.0,0.30018809]
[1752102537451,1.38560388,111490.0,111480.0,0.30018809]
[1752102537665,1.34450388,111490.0,111480.0,0.30018809]
[1752102538949,1.34442388,111490.0,111480.0,0.30018809]
[1752102540049,1.36844388,111490.0,111480.0,0.001]
[1752102540256,1.41314388,111490.0,111480.0,0.001]
[1752102541249,1.41314388,111490.0,111480.0,0.23995809]
[1752102541451,1.41314388,111490.0,111480.0,0.25393176]
[1752102542145,1.41314388,111490.0,111480.0,0.01497367]
[1752102543043,0.1793431,111480.0,111470.0,0.00179412]
[1752102543246,0.1793753,111460.0,111450.0,0.6094322]
[1752102543556,0.86313274,111460.0,111450.0,0.48679506]
[1752102543748,0.92260274,111460.0,111450.0,0.47627949]
[1752102544458,0.92260274,111460.0,111450.0,0.51967949]
[1752102544964,1.28340274,111460.0,111450.0,0.52967949]
[1752102545171,1.29897839,111460.0,111450.0,0.52967949]
[1752102545460,0.67145839,111460.0,111450.0,0.52967949]
[1752102545664,1.29889839,111460.0,111450.0,0.52967949]
[1752102545962,0.93809839,111460.0,111450.0,0.52967949]
[1752102546470,0.31065839,111460.0,111450.0,0.52967949]
[1752102546669,0.93805839,111460.0,111450.0,0.52967949]
[1752102547162,1.29885839,111460.0,111450.0,0.52967949]
[1752102548162,0.67145839,111460.0,111450.0,0.52967949]
[1752102548362,1.29885839,111460.0,111450.0,0.52967949]
[1752102549167,0.93805839,111460.0,111450.0,0.52967949]
[1752102549560,0.93805839,111460.0,111450.0,0.2907214]
[1752102549754,0.93805839,111460.0,111450.0,0.54019615]
[1752102550067,1.29885839,111460.0,111450.0,0.52967949]
[1752102551060,1.00537839,111460.0,111450.0,0.35028809]
[1752102551368,1.36617839,111460.0,111450.0,0.01]
[1752102551565,0.89475839,111460.0,111450.0,0.46604979]
[1752102551862,0.89459839,111460.0,111450.0,0.80152469]
[1752102552168,0.89459839,111460.0,111450.0,1.16232469]
[1752102552358,0.26735839,111460.0,111450.0,1.16232469]
[1752102552558,0.05623744,111460.0,111450.0,1.16232469]
[1752102552759,0.86281304,111460.0,111450.0,1.15180788]
[1752102553060,0.68343744,111460.0,111450.0,1.16232385]
[1752102553260,0.23561304,111460.0,111450.0,1.16232385]
[1752102554168,0.23717294,111460.0,111450.0,1.16232385]
[1752102554368,0.05779734,111460.0,111450.0,1.16232385]
[1752102554660,0.05779734,111460.0,111450.0,2.91549588]
[1752102554868,0.05779734,111460.0,111450.0,2.83549588]
[1752102555165,0.05779734,111460.0,111450.0,2.59936401]
[1752102555768,0.05779734,111460.0,111450.0,2.96936401]
[1752102555968,0.05779734,111460.0,111450.0,2.97987877]
[1752102556269,0.05779734,111460.0,111450.0,2.96987877]
[1752102556663,0.05779734,111460.0,111450.0,2.60987877]
[1752102556973,0.05779734,111460.0,111450.0,2.93987877]
[1752102557158,0.05779734,111460.0,111450.0,2.60987877]
[1752102557359,0.05779734,111460.0,111450.0,2.92987877]
[1752102557760,0.92142531,111480.0,111470.0,0.1793595]
[1752102557961,0.29442531,111480.0,111470.0,0.83068553]
[1752102558163,0.87658931,111480.0,111470.0,0.91788553]
[1752102558462,0.95700213,111480.0,111470.0,0.91788553]
[1752102558756,0.95694833,111480.0,111470.0,0.91788553]
[1752102558962,0.95694833,111480.0,111470.0,0.90401759]
[1752102559363,0.95690833,111480.0,111470.0,0.90401759]
[1752102559568,0.87649551,111480.0,111470.0,0.90601759]
[1752102559761,0.24957551,111480.0,111470.0,0.90601759]
[1752102559963,0.87649551,111480.0,111470.0,0.90801759]
[1752102560268,0.89293551,111480.0,111470.0,0.90801759]
[1752102560469,0.87649551,111480.0,111470.0,0.90801759]
[1752102560666,0.89293551,111480.0,111470.0,0.90801759]
[1752102561172,0.87645551,111480.0,111470.0,0.90801759]
[1752102561362,0.89289551,111480.0,111470.0,0.90801759]
[1752102562570,0.71355211,111480.0,111470.0,0.90801759]
[1752102563272,0.01644,111480.0,111470.0,0.90801759]
[1752102563468,0.11433263,111490.0,111480.0,0.1793434]
[1752102563665,0.03391981,111490.0,111480.0,1.11825958]
[1752102563861,0.67707981,111490.0,111480.0,1.14085958]
[1752102564065,0.85640711,111490.0,111480.0,1.14085958]
[1752102564272,0.67707981,111490.0,111480.0,1.14085958]
[1752102564473,0.03510949,111490.0,111480.0,1.14085958]
[1752102564673,0.66182949,111490.0,111480.0,1.14185958]
[1752102564873,0.84115679,111490.0,111480.0,1.14185958]
[1752102565075,0.21443679,111490.0,111480.0,1.14185958]
[1752102565271,0.84107679,111490.0,111480.0,0.6639434]
[1752102565576,0.66174949,111490.0,111480.0,1.14185958]
[1752102566473,0.66174949,111490.0,111480.0,1.14585958]
[1752102566873,0.66174949,111490.0,111480.0,1.14485958]
[1752102567175,0.66174949,111490.0,111480.0,1.14785958]
[1752102567373,0.84107679,111490.0,111480.0,1.14785958]
[1752102567679,0.66174949,111490.0,111480.0,1.14785958]
[1752102568275,0.66162949,111490.0,111480.0,1.14785958]
[1752102568473,0.64518949,111490.0,111480.0,1.14785958]
[1752102568674,0.64514949,111490.0,111480.0,1.14785958]
[1752102569271,0.82447679,111490.0,111480.0,1.14785958]
[1752102569470,0.01866949,111490.0,111480.0,1.14785958]
[1752102569670,0.68002663,111490.0,111480.0,1.14785958]
[1752102570575,0.85935393,111490.0,111480.0,1.14785958]
[1752102570766,0.64514949,111490.0,111480.0,1.14785958]
[1752102571473,0.82447679,111490.0,111480.0,1.14785958]
[1752102571865,0.64514949,111490.0,111480.0,1.14785958]
[1752102572062,0.67999188,111490.0,111480.0,1.14785958]
[1752102573366,0.69643188,111490.0,111480.0,1.14785958]
[1752102573566,0.67999188,111490.0,111480.0,1.14785958]
[1752102574772,0.05351188,111490.0,111480.0,1.14785958]
[1752102575166,0.67971188,111490.0,111480.0,1.14785958]
[1752102575778,0.23283918,111490.0,111480.0,1.14785958]
[1752102575981,0.87547918,111490.0,111480.0,0.78610149]
[1752102576276,1.58455727,111490.0,111480.0,0.007]
[1752102576464,0.1793756,111460.0,111450.0,0.60803029]
[1752102576669,0.8219356,111460.0,111450.0,0.61854435]
[1752102576863,0.8644356,111460.0,111450.0,0.63364435]